fUSD/lending_fUSD_20240424
["ID","MTS","AMOUNT","RATE_DAILY","PERIOD"]
[323455089,1713995455124,-701.22630949,0.00018336,2]
[323455090,1713995455133,-162.58953009,0.00018353,2]
[323455091,1713995455142,-150.686753,0.00018356,2]
[323455092,1713995455151,-162.58953009,0.00018422,2]
[323455093,1713995455160,-162.58953009,0.00018431,2]
[323455094,1713995455169,-153.32181976,0.00018439,2]
[323455095,1713995455178,-167.0,0.00018444,2]
[323455096,1713995455187,-1001.8,0.0001845,2]
[323455097,1713995455197,-3470.69175967,0.00018454,2]
[323455098,1713995455206,-202.32823677,0.00018455,2]
[323455099,1713995455215,-163.26605768,0.00018472,2]
[323455100,1713995455224,-150.0,0.000185,2]
[323455101,1713995455233,-150.0,0.000185,2]
[323455102,1713995455242,-152.15698381,0.00018503,2]
[323455103,1713995455252,-500.0,0.00018517,2]
[323455104,1713995455261,-1835.74186463,0.0001858,2]
[323455105,1713995455270,-1556.12434402,0.000186,2]
[323455106,1713995455279,-4524.19543812,0.00018619,2]
[323455107,1713995455289,-1610.81121698,0.00018629,2]
[323455108,1713995455298,-791.19304582,0.00018638,2]
[323455109,1713995455307,-151.54354748,0.0001864,2]
[323455110,1713995455316,-400.6793135,0.0001866,2]
[323455111,1713995455327,-153.97725866,0.00018676,2]
[323455112,1713995455338,-200.0,0.00018682,2]
[323455113,1713995455346,-200.0,0.00018682,2]
[323455114,1713995455356,-206.21026947,0.0001871,2]
[323455115,1713995455365,-339.82243824,0.00018733,2]
[323455116,1713995455374,-162.58953009,0.00018735,2]
[323455117,1713995455384,-3470.69175967,0.00018737,2]
[323455118,1713995455393,-1610.81121698,0.00018748,2]
[323455119,1713995455403,-202.32823677,0.0001877,2]
[323455120,1713995455412,-167.49629488,0.00018824,2]
[323455121,1713995455422,-202.32823677,0.00018843,2]
[323455122,1713995455432,-500.0,0.00018847,2]
[323455123,1713995455441,-158.16660144,0.00018854,2]
[323455124,1713995455450,-701.22630949,0.00018886,2]
[323455125,1713995455459,-1556.12434402,0.00018894,2]
[323455126,1713995455469,-152.15698381,0.00018919,2]
[323455127,1713995455478,-200.0,0.00018927,2]
[323455128,1713995455487,-152.15698381,0.00018928,2]
[323455129,1713995455496,-3470.69175967,0.00018942,2]
[323455130,1713995455505,-400.0,0.0001897,2]
[323455131,1713995455514,-600.0,0.0001897,2]
[323455132,1713995455523,-339.82243824,0.00018986,2]
[323455133,1713995455532,-493.24964843,0.00019,2]
[323455134,1713995455541,-155.0,0.00019,2]
[323455135,1713995455550,-1000.0,0.00019,2]
[323455136,1713995455559,-150.0,0.00019,2]
[323455137,1713995455568,-150.0,0.00019,2]
[323455138,1713995455578,-150.0,0.00019,2]
[323455139,1713995455587,-153.32181976,0.00019003,2]
[323455140,1713995455596,-791.19304582,0.00019005,2]
[323455141,1713995455605,-153.32181976,0.00019021,2]
[323455142,1713995455614,-200.0,0.00019068,2]
[323455143,1713995455623,-153.32181976,0.0001907,2]
[323455144,1713995455632,-155.97008448,0.00019087,2]
[323455145,1713995455642,-206.21026947,0.00019115,2]
[323455146,1713995455651,-1556.12434402,0.00019155,2]
[323455147,1713995455660,-500.0,0.00019177,2]
[323455148,1713995455669,-646.37784351,0.00019178,2]
[323455149,1713995455679,-646.37784351,0.00019178,2]
[323455150,1713995455688,-646.37784351,0.00019178,2]
[323455151,1713995455697,-646.37784351,0.00019178,2]
[323455152,1713995455706,-646.37784351,0.00019178,2]
[323455153,1713995455715,-646.37784351,0.00019178,2]
[323455154,1713995455724,-646.37784351,0.00019178,2]
[323455155,1713995455734,-646.37784351,0.00019178,2]
[323455156,1713995455742,-646.37784351,0.00019178,2]
[323455157,1713995455752,-646.37784351,0.00019178,2]
[323455158,1713995455761,-646.37784351,0.00019178,2]
[323455159,1713995455770,-646.37784351,0.00019178,2]
[323455160,1713995455779,-646.37784351,0.00019178,2]
[323455161,1713995455788,-646.37784351,0.00019178,2]
[323455162,1713995455797,-646.37784351,0.00019178,2]
[323455163,1713995455806,-646.37784351,0.00019178,2]
[323455164,1713995455815,-646.37784351,0.00019178,2]
[323455165,1713995455825,-646.37784351,0.00019178,2]
[323455166,1713995455834,-646.37784351,0.00019178,2]
[323455167,1713995455843,-646.37784351,0.00019178,2]
[323455168,1713995455852,-646.37784351,0.00019178,2]
[323455169,1713995455861,-646.37784351,0.00019178,2]
[323455170,1713995455870,-646.37784351,0.00019178,2]
[323455171,1713995455880,-646.37784351,0.00019178,2]
[323455172,1713995455889,-646.37784351,0.00019178,2]
[323455173,1713995455898,-646.37784351,0.00019178,2]
[323455174,1713995455908,-646.37784351,0.00019178,2]
[323455175,1713995455917,-646.37784351,0.00019178,2]
[323455176,1713995455928,-646.37784351,0.00019178,2]
[323455177,1713995455937,-646.37784351,0.00019178,2]
[323455178,1713995455946,-646.37784351,0.00019178,2]
[323455179,1713995455956,-646.37784351,0.00019178,2]
[323455180,1713995455966,-646.37784351,0.00019178,2]
[323455181,1713995455975,-646.37784351,0.00019178,2]
[323455182,1713995455984,-646.37784351,0.00019178,2]
[323455183,1713995455993,-646.37784351,0.00019178,2]
[323455184,1713995456002,-646.37784351,0.00019178,2]
[323455185,1713995456011,-646.37784351,0.00019178,2]
[323455186,1713995456020,-646.37784351,0.00019178,2]
[323455187,1713995456030,-646.37784351,0.00019178,2]
[323455188,1713995456039,-646.37784351,0.00019178,2]
[323455189,1713995456049,-646.37784351,0.00019178,2]
[323455190,1713995456058,-646.37784351,0.00019178,2]
[323455191,1713995456067,-646.37784351,0.00019178,2]
[323455192,1713995456076,-646.37784351,0.00019178,2]
[323455193,1713995456085,-646.37784351,0.00019178,2]
[323455194,1713995456094,-646.37784351,0.00019178,2]
[323455195,1713995456103,-646.37784351,0.00019178,2]
[323455196,1713995456113,-646.37784351,0.00019178,2]
[323455197,1713995456122,-646.37784351,0.00019178,2]
[323455198,1713995456131,-646.37784351,0.00019178,2]
[323455199,1713995456140,-646.37784351,0.00019178,2]
[323455200,1713995456150,-646.37784351,0.00019178,2]
[323455201,1713995456159,-646.37784351,0.00019178,2]
[323455202,1713995456169,-646.37784351,0.00019178,2]
[323455203,1713995456178,-646.37784351,0.00019178,2]
[323455204,1713995456188,-646.37784351,0.00019178,2]
[323455205,1713995456198,-646.37784351,0.00019178,2]
[323455206,1713995456207,-626.48929445,0.00019178,2]
[323455207,1713995456216,-626.48929445,0.00019178,2]
[323455208,1713995456226,-626.48929445,0.00019178,2]
[323455209,1713995456235,-626.48929445,0.00019178,2]
[323455210,1713995456244,-626.48929445,0.00019178,2]
[323455211,1713995456253,-626.48929445,0.00019178,2]
[323455212,1713995456262,-626.48929445,0.00019178,2]
[323455213,1713995456272,-626.48929445,0.00019178,2]
[323455214,1713995456281,-626.48929445,0.00019178,2]
[323455215,1713995456291,-626.48929445,0.00019178,2]
[323455216,1713995456300,-626.48929445,0.00019178,2]
[323455217,1713995456309,-626.48929446,0.00019178,2]
[323455218,1713995456318,-626.48929446,0.00019178,2]
[323455219,1713995456331,-500.0,0.00019178,2]
[323455220,1713995456340,-500.0,0.00019178,2]
[323455221,1713995456350,-500.0,0.00019178,2]
[323455222,1713995456358,-531.34894938,0.00019178,2]
[323455223,1713995456367,-200.0,0.00019178,2]
[323455224,1713995456378,-150.686753,0.00019178,2]
[323455225,1713995456387,-831.6932465,0.00019194,2]
[323455226,1713995456396,-1556.12434402,0.00019195,2]
[323455227,1713995456406,-791.19304582,0.00019205,2]
[323455228,1713995456415,-153.11746327,0.00019223,2]
[323455229,1713995456424,-165.32207821,0.00019243,2]
[323455230,1713995456433,-202.32823677,0.00019246,2]
[323455231,1713995456442,-200.0,0.00019261,2]
[323455232,1713995456451,-159.35864408,0.00019264,2]
[323455233,1713995456461,-153.11746327,0.00019276,2]
[323455234,1713995456471,-202.32823677,0.00019297,2]
[323455235,1713995456480,-165.32207821,0.000193,2]
[323455236,1713995456489,-701.22630949,0.00019308,2]
[323455237,1713995456498,-162.58953009,0.00019336,2]
[323455238,1713995456507,-159.35864408,0.00019338,2]
[323455239,1713995456516,-791.19304582,0.00019338,2]
[323455240,1713995456525,-154.35452385,0.0001934,2]
[323455241,1713995456534,-3470.69175967,0.00019348,2]
[323455242,1713995456543,-153.11746327,0.00019352,2]
[323455243,1713995456553,-1001.8,0.0001936,2]
[323455244,1713995456562,-150.0,0.0001938,2]
[323455245,1713995456570,-150.0,0.0001938,2]
[323455246,1713995456579,-150.0,0.0001938,2]
[323455247,1713995456589,-245.44,0.00019384,2]
[323455248,1713995456598,-153.56806256,0.00019397,2]
[323455249,1713995456607,-152.15698381,0.00019421,2]
[323455250,1713995456616,-200.0,0.00019453,2]
[323455251,1713995456625,-1556.12434402,0.0001946,2]
[323455252,1713995456634,-152.15698381,0.00019471,2]
[323455253,1713995456644,-151.54354748,0.00019476,2]
[323455254,1713995456653,-3470.69175967,0.00019492,2]
[323455255,1713995456662,-1000.0,0.000195,2]
[323455256,1713995456671,-150.0,0.000195,2]
[323455257,1713995456681,-150.0,0.000195,2]
[323455258,1713995456690,-500.0,0.00019509,2]
[323455259,1713995456699,-791.19304582,0.00019519,2]
[323455260,1713995456708,-1001.8,0.0001954,2]
[323455261,1713995456718,-1610.81121698,0.00019544,2]
[323455262,1713995456728,-720.61432192,0.00019557,2]
[323455263,1713995456737,-977.86153816,0.00019557,3]
[323455264,1713995456746,-197.85840028,0.00019557,2]
[323455265,1713995456756,-202.32823677,0.0001956,2]
[323455266,1713995456766,-831.6932465,0.00019569,2]
[323455267,1713995456775,-150.5,0.0001957,7]
[323455268,1713995456785,-150.5,0.0001958,7]
[323455269,1713995456794,-165.32207821,0.00019585,2]
[323455270,1713995456803,-150.5,0.0001959,7]
[323455271,1713995456813,-1835.74186463,0.00019599,2]
[323455272,1713995456822,-182.41661613,0.00019603,2]
[323455273,1713995456832,-1835.74186463,0.00019608,2]
[323455274,1713995456841,-1610.81121698,0.0001961,2]
[323455275,1713995456851,-165.32207821,0.00019615,2]
[323455276,1713995456860,-1835.74186463,0.00019625,2]
[323455277,1713995456870,-1694061.07270102,0.00019656,2]
[323455278,1713995457156,-1960.0,0.00019656,2]
[323455279,1713995457169,-10006.21413927,0.00019656,2]
[323455280,1713995457180,-9136.80152,0.00019656,2]
[323455281,1713995457191,-257.59616578,0.00019656,2]
[323455282,1713995457203,-370.262,0.00019656,2]
[323455283,1713995457214,-254.5805,0.00019656,2]
[323455284,1713995457234,-13311.09075898,0.00013425,2]
[323455285,1713995457246,-5245.48924102,0.00013425,2]
[323455286,1713995457255,-1188.81075898,0.00019656,2]
[323455287,1713995457266,-5177.67036089,0.00019656,2]
[323455288,1713995457278,-333.4495122,0.00019656,2]
[323455289,1713995457290,-2945.99999991,0.00019656,2]
[323455290,1713995457301,-7102.69264074,0.00019656,2]
[323455291,1713995457323,-1620.000003,0.00019656,2]
[323455292,1713995457337,-1949.57366518,0.00019656,2]
[323455293,1713995457349,-1371.43486432,0.00019656,2]
[323455294,1713995457453,-187.16896702,0.000149,2]
[323455295,1713995457463,-6544.46759298,0.00019656,2]
[323455296,1713995457476,-7233.0,0.00019656,2]
[323455297,1713995457489,-635.88,0.00019656,2]
[323455298,1713995457500,-617.2666498,0.00019656,2]
[323455299,1713995457513,-600.0000055,0.00019656,2]
[323455300,1713995457527,-1280.98494995,0.00019656,2]
[323455301,1713995457540,-503.99410468,0.00019656,2]
[323455302,1713995457551,-1407.0,0.00019656,2]
[323455303,1713995457563,-678.25000005,0.00019656,2]
[323455304,1713995457586,-344.10978337,0.00019656,2]
[323455305,1713995457597,-636.20703139,0.00019656,2]
[323455306,1713995457608,-8900.56235922,0.00019656,2]
[323455307,1713995457620,-6762.50845146,0.00019656,2]
[323455308,1713995457631,-322.4773321,0.00019656,2]
[323455309,1713995457643,-328.04999985,0.00019656,2]
[323455310,1713995457654,-925.50594997,0.00019656,2]
[323455311,1713995457666,-427.149998,0.00019656,2]
[323455312,1713995457680,-1502.81579274,0.00019656,2]
[323455313,1713995457692,-1003.24613563,0.00019656,2]
[323455314,1713995457704,-300.0,0.00019656,2]
[323455315,1713995457715,-840.00000001,0.00019656,2]
[323455316,1713995457728,-500.0,0.00019656,2]
[323455317,1713995457740,-275.31723264,0.00019656,2]
[323455318,1713995457752,-1407.65754831,0.00019656,2]
[323455319,1713995457763,-4704.000003,0.00019656,2]
[323455320,1713995457774,-2013.4999997,0.00019656,2]
[323455321,1713995457786,-2632.50769217,0.00019656,2]
[323455322,1713995457797,-19585.34757074,0.00019656,2]
[323455323,1713995458140,-661.85250609,0.00019656,2]
[323455324,1713995458151,-5763.25468338,0.00019656,2]
[323455325,1713995458163,-5700.0,0.00019656,2]
[323455326,1713995458175,-3975.80907621,0.00019656,2]
[323455327,1713995458186,-4920.6262506,0.00019656,2]
[323455328,1713995458199,-5791.24352375,0.00019656,2]
[323455329,1713995458211,-2287.15044994,0.00019656,2]
[323455330,1713995458224,-447.71789942,0.00019656,2]
[323455331,1713995458236,-79442.33006102,0.00019656,2]
[323455332,1713995458469,-4465.83763143,0.00019656,2]
[323455333,1713995458481,-4995.0,0.00019656,2]
[323455334,1713995458493,-885.55099762,0.00019656,2]
[323455335,1713995458505,-36813.85625513,0.00019656,2]
[323455336,1713995458717,-24709.47129042,0.00019656,2]
[323455337,1713995458734,-683.88504015,0.00019656,2]
[323455338,1713995458745,-396.87088712,0.00019656,2]
[323455339,1713995458756,-626.10924374,0.00019656,2]
[323455340,1713995458769,-8760.27938769,0.00019656,2]
[323455341,1713995458784,-2500.0,0.00019656,2]
[323455342,1713995458796,-1374.97521,0.00019656,2]
[323455343,1713995458811,-11026.5985078,0.00019656,2]
[323455344,1713995458822,-56986.23994337,0.00019656,2]
[323455345,1713995458833,-53231.14608123,0.00019656,2]
[323455346,1713995458845,-6293.32144232,0.00019656,2]
[323455347,1713995458857,-36590.05920807,0.00019656,2]
[323455348,1713995458868,-10626.67261,0.00019656,2]
[323455349,1713995458880,-15244.77312,0.00019656,2]
[323455350,1713995458891,-982.5,0.00019656,2]
[323455351,1713995458903,-800.8,0.00019656,2]
[323455352,1713995458915,-32822.62256101,0.00019656,2]
[323455353,1713995528546,5444.36579,0.00025975,90]
[323455386,1713996631895,-207.92,9.344e-05,2]
[323455387,1713996631904,-710.23558579,0.0001,2]
[323455388,1713996631913,-302.22819199,0.00011,2]
[323455391,1713996631924,-501.20504773,0.00011027,2]
[323455393,1713996631933,-500.0,0.00011027,2]
[323455395,1713996631942,-500.0,0.00011027,2]
[323455396,1713996631951,-150.0,0.00011187,2]
[323455397,1713996631960,-150.0,0.00011187,2]
[323455398,1713996631969,-57270.46716914,0.00011188,2]
[323455399,1713996631979,-500.0,0.00011301,2]
[323455400,1713996631987,-500.0,0.00011301,2]
[323455401,1713996631997,-150.0,0.00011312,2]
[323455402,1713996632006,-175.07,0.00011329,2]
[323455403,1713996632015,-580.55,0.00011377,2]
[323455405,1713996632024,-165.64,0.0001144,2]
[323455407,1713996632033,-7559.295,0.00011475,2]
[323455409,1713996632042,-5798.80919697,0.000115,2]
[323455410,1713996632055,-9767.83103215,0.000115,2]
[323455411,1713996632086,-1272.24,0.000115,2]
[323455412,1713996632109,-431.18512968,0.000115,2]
[323455413,1713996632121,-2049.42770371,0.000115,2]
[323455414,1713996632164,-2364.28918494,0.000115,2]
[323455415,1713996632177,-1547.31712131,0.000115,2]
[323455424,1713996637942,-668.90063124,0.000115,2]
[323455426,1713996637952,-888.75,0.00011555,2]
[323455428,1713996637961,-423.34,0.00011575,2]
[323455429,1713996637971,-500.0,0.00011575,2]
[323455430,1713996637980,-1000.0,0.00011594,2]
[323455431,1713996637990,-207.92,0.00011608,2]
[323455432,1713996637999,-175.07,0.00011624,2]
[323455433,1713996638008,-191.54,0.00011849,2]
[323455434,1713996638017,-6258.33745446,0.000119,2]
[323455435,1713996638026,-175.07,0.0001192,2]
[323455436,1713996638035,-2750.0,0.00012,2]
[323455437,1713996638045,-409.12011988,0.00012068,2]
[323455438,1713996638054,-2500.0,0.00012069,2]
[323455439,1713996638063,-2500.0,0.00012155,2]
[323455440,1713996638073,-2500.0,0.00012237,2]
[323455441,1713996638082,-4046.44,0.00012275,2]
[323455442,1713996638092,-524.0,0.00012301,2]
[323455443,1713996638101,-166.88,0.00012381,2]
[323455444,1713996638111,-5000.0,0.00012405,2]
[323455445,1713996638120,-5000.0,0.00012436,2]
[323455446,1713996638129,-10000.0,0.00012468,2]
[323455447,1713996638138,-251.64589912,0.000125,2]
[323455448,1713996638149,-5000.0,0.00012573,2]
[323455449,1713996638159,-1221.82916626,0.000127,2]
[323455450,1713996638168,-214.43705407,0.000127,2]
[323455451,1713996638179,-958.78609239,0.000127,2]
[323455452,1713996638188,-163.0952102,0.000127,2]
[323455453,1713996638198,-5334.4216,0.000127,2]
[323455454,1713996638207,-500.0,0.000127,2]
[323455455,1713996638217,-1189.87009713,0.000127,2]
[323455456,1713996638227,-1741.36961898,0.000127,2]
[323455457,1713996638237,-1370.98131111,0.000127,2]
[323455458,1713996638246,-2500.0,0.00012706,2]
[323455459,1713996638255,-163.09521016,0.0001275,2]
[323455460,1713996638266,-849.75748522,0.00012786,2]
[323455461,1713996638275,-1351.45342977,0.00012798,2]
[323455462,1713996638285,-35257.32458205,0.00012798,2]
[323455463,1713996638295,-362.91545669,0.00012798,2]
[323455464,1713996638304,-181.05979882,0.00012798,2]
[323455465,1713996638314,-194.37853639,0.00012798,2]
[323455466,1713996638324,-155.0,0.00012798,2]
[323455467,1713996638334,-325.67432968,0.00012798,2]
[323455468,1713996638343,-206.75433877,0.00012798,2]
[323455469,1713996638352,-376.80702448,0.00012798,2]
[323455470,1713996638361,-155.0,0.00012798,2]
[323455471,1713996638371,-4728.74904802,0.00012798,2]
[323455472,1713996638381,-155.0,0.00012798,2]
[323455473,1713996638390,-210.58686948,0.00012798,2]
[323455474,1713996638400,-155.0,0.00012798,2]
[323455475,1713996638409,-200.28280363,0.00012799,2]
[323455476,1713996638419,-500.0,0.00012799,2]
[323455477,1713996638429,-500.0,0.00012799,2]
[323455478,1713996638439,-1056.0441035,0.00012799,3]
[323455479,1713996638448,-500.0,0.00012799,2]
[323455480,1713996638458,-1056.0441035,0.00012799,3]
[323455481,1713996638467,-500.0,0.00012799,2]
[323455482,1713996638477,-500.0,0.00012799,2]
[323455483,1713996638486,-327.32,0.00012799,2]
[323455484,1713996638495,-671.81,0.00012799,2]
[323455485,1713996638505,-507.2,0.00012799,2]
[323455486,1713996638514,-500.0,0.00012799,2]
[323455487,1713996638524,-644.76721752,0.00012799,2]
[323455488,1713996638533,-500.0,0.00012799,2]
[323455489,1713996638543,-500.0,0.00012799,2]
[323455490,1713996638552,-500.0,0.00012799,2]
[323455491,1713996638562,-2604.95,0.00012799,2]
[323455492,1713996638571,-589.27,0.00012799,2]
[323455493,1713996638581,-500.0,0.00012799,2]
[323455494,1713996638590,-500.0,0.00012799,2]
[323455495,1713996638600,-500.0,0.00012799,2]
[323455496,1713996638609,-500.0,0.00012799,2]
[323455497,1713996638619,-500.0,0.00012799,2]
[323455498,1713996638628,-558.25,0.00012799,2]
[323455499,1713996638638,-566.01,0.00012799,2]
[323455500,1713996638647,-500.0,0.00012799,2]
[323455501,1713996638656,-500.0,0.00012799,2]
[323455502,1713996638666,-500.0,0.00012799,2]
[323455503,1713996638680,-500.0,0.00012799,2]
[323455504,1713996638689,-500.0,0.00012799,2]
[323455505,1713996638698,-500.0,0.00012799,2]
[323455506,1713996638707,-500.0,0.00012799,2]
[323455507,1713996638717,-500.0,0.00012799,2]
[323455508,1713996638727,-1020.3,0.00012799,2]
[323455509,1713996638736,-500.0,0.00012799,2]
[323455510,1713996638746,-500.0,0.00012799,2]
[323455511,1713996638757,-500.0,0.00012799,2]
[323455512,1713996638767,-500.0,0.00012799,2]
[323455513,1713996638776,-500.0,0.00012799,2]
[323455514,1713996638786,-500.0,0.00012799,2]
[323455515,1713996638795,-500.0,0.00012799,2]
[323455516,1713996638804,-500.0,0.00012799,2]
[323455517,1713996638813,-500.0,0.00012799,2]
[323455518,1713996638823,-402.62,0.00012799,2]
[323455519,1713996638832,-500.0,0.00012799,2]
[323455520,1713996638841,-500.0,0.00012799,2]
[323455521,1713996638851,-500.0,0.00012799,2]
[323455522,1713996638861,-500.0,0.00012799,2]
[323455523,1713996638870,-500.0,0.00012799,2]
[323455524,1713996638880,-196.49245613,0.00012799,2]
[323455525,1713996638890,-500.0,0.00012799,2]
[323455526,1713996638900,-639.53,0.00012799,2]
[323455527,1713996638909,-500.0,0.00012799,2]
[323455528,1713996638918,-500.0,0.00012799,2]
[323455529,1713996638928,-596.53,0.00012799,2]
[323455530,1713996638938,-500.0,0.00012799,2]
[323455531,1713996638947,-500.0,0.00012799,2]
[323455532,1713996638957,-500.0,0.00012799,2]
[323455533,1713996638967,-500.0,0.00012799,2]
[323455534,1713996638976,-359.69171359,0.00012799,2]
[323455535,1713996638985,-500.0,0.00012799,2]
[323455536,1713996638994,-500.0,0.00012799,2]
[323455537,1713996639004,-4375482.61106194,0.000128,5]
[323455538,1713996639013,-1042.13545394,0.000128,2]
[323455539,1713996639026,-412.62149716,0.000128,2]
[323455540,1713996640005,-214460.89049638,0.000128,2]
[323455541,1713996640016,-163.09521016,0.000128,2]
[323455542,1713996640026,-155.0,0.000128,2]
[323455543,1713996640036,-1741.36961896,0.000128,2]
[323455544,1713996640046,-1370.98131111,0.000128,2]
[323455545,1713996640057,-2892.8,0.00012834,2]
[323455546,1713996640067,-163.09521016,0.0001285,2]
[323455547,1713996640076,-47610.70405862,0.00012863,2]
[323455548,1713996640087,-365.97088217,0.000129,2]
[323455549,1713996640096,-302.5848,0.000129,2]
[323455550,1713996640107,-565.5244298,0.000129,2]
[323455551,1713996640116,-565.52442976,0.000129,2]
[323455552,1713996640126,-565.52442976,0.000129,2]
[323455553,1713996640135,-565.52442976,0.000129,2]
[323455554,1713996640145,-565.52442976,0.000129,2]
[323455555,1713996640154,-565.52442976,0.000129,2]
[323455556,1713996640164,-163.09521016,0.000129,2]
[323455557,1713996640173,-1741.36961896,0.000129,2]
[323455558,1713996640183,-1370.98131111,0.000129,2]
[323455559,1713996640192,-2500.0,0.00012911,2]
[323455560,1713996640202,-565.52442976,0.00012915,2]
[323455561,1713996640212,-5000.0,0.00012926,2]
[323455562,1713996640221,-565.52442976,0.00012942,2]
[323455563,1713996640230,-5545.84899001,0.00012944,2]
[323455564,1713996640239,-2555.52975326,0.0001295,2]
[323455565,1713996640248,-524.0,0.00012986,2]
[323455566,1713996640257,-24416.27633537,0.0001299,2]
[323455567,1713996640266,-5000.0,0.00012996,2]
[323455568,1713996640276,-2522.17255414,0.00012999,2]
[323455569,1713996640285,-51020.91192681,0.00013,2]
[323455570,1713996640298,-6443.79234526,0.00013,2]
[323455571,1713996640327,-982.8785828,0.00013,2]
[323455572,1713996640339,-301.43499996,0.00013,2]
[323455584,1713996643206,-12.05058569,0.00012328,2]
[323455585,1713996643220,-492.94941431,0.00012328,2]
[323455586,1713996643229,-500.0,0.00012799,2]
[323455587,1713996643240,-500.0,0.00012799,2]
[323455588,1713996643250,-3285.61291945,0.00013,2]
[323455589,1713996643274,-412.53184285,0.00012999,2]
[323455590,1713996643283,-588.34815689,0.00013,2]
[323455591,1713996643297,-704.733448,0.00013,2]
[323455592,1713996643310,-3159.79999999,0.00013,2]
[323455600,1713996645961,-4920.6262506,0.00013,2]
[323455601,1713996645974,-5791.24352375,0.00013,2]
[323455602,1713996645987,-477.52456589,0.00013,2]
[323455603,1713996646127,-8591.26129954,0.00013,2]
[323455604,1713996646849,-57987.56079874,0.00013,2]
[323455605,1713996646860,-202080.90098935,0.00013,2]
[323455606,1713996646872,-304968.96003378,0.00013,2]
[323455607,1713996646883,-414.68912313,0.00013,2]
[323455637,1713997832165,-215.06,9.242e-05,2]
[323455639,1713997832175,-150.0,9.594e-05,2]
[323455640,1713997832184,-211.26490571,9.595e-05,2]
[323455641,1713997832195,-665.08469825,9.595e-05,2]
[323455642,1713997832205,-3913.38875614,9.595e-05,2]
[323455643,1713997832217,-11803.27000391,9.595e-05,2]
[323455644,1713997832227,-3413.75428365,0.00010471,2]
[323455645,1713997832237,-169.38,0.00010472,2]
[323455646,1713997832246,-1465.73,0.00010472,2]
[323455647,1713997832256,-386.36,0.00011088,2]
[323455648,1713997832265,-283.42,0.0001117,2]
[323455649,1713997832276,-15915.06167899,0.00011189,2]
[323455650,1713997832289,-787.27814909,0.00011189,2]
[323455651,1713997832300,-275.79509557,0.00011189,2]
[323455652,1713997832318,-5786.13705453,0.00011189,2]
[323455653,1713997832330,-1135.72802182,0.00011189,2]
[323455654,1713997832339,-153.81,0.00011208,2]
[323455655,1713997832348,-676.31,0.00011208,2]
[323455656,1713997832357,-499.99,0.00011208,2]
[323455657,1713997832367,-1121.13,0.00011297,2]
[323455658,1713997832376,-8831.53,0.00011297,2]
[323455659,1713997832385,-153.81,0.00011325,2]
[323455660,1713997832394,-153.81,0.00011441,2]
[323455661,1713997832405,-215.06,0.00011505,2]
[323455662,1713997832414,-466.46,0.00011532,2]
[323455663,1713997832423,-153.81,0.00011558,2]
[323455664,1713997832433,-150.99,0.0001165,2]
[323455665,1713997832442,-153.81,0.00011675,2]
[323455666,1713997832453,-749.4695907,0.00011698,2]
[323455667,1713997832462,-153.81,0.00011792,2]
[323455668,1713997832471,-297.47240248,0.00012,2]
[323455669,1713997832484,-685.05424735,0.00012,2]
[323455670,1713997832496,-1767.47335017,0.00012,2]
[323455671,1713997832506,-409.12011988,0.00012,2]
[323455672,1713997832516,-285.92,0.00012013,2]
[323455674,1713997832525,-285.92,0.00012016,2]
[323455676,1713997832534,-285.92,0.00012019,2]
[323455678,1713997832543,-285.92,0.00012022,2]
[323455680,1713997832553,-285.92,0.00012025,2]
[323455682,1713997832563,-285.92,0.00012029,2]
[323455684,1713997832573,-285.92,0.00012032,2]
[323455686,1713997832582,-285.92,0.00012035,2]
[323455688,1713997832591,-285.92,0.00012038,2]
[323455690,1713997832600,-285.92,0.00012041,2]
[323455692,1713997832609,-285.92,0.00012044,2]
[323455694,1713997832618,-285.92,0.00012047,2]
[323455696,1713997832627,-285.92,0.00012051,2]
[323455698,1713997832636,-285.92,0.00012054,2]